bitfinex-derivatives/quotes_BTCF0:USTF0_20241021
["timestamp","ask_amount","ask_price","bid_price","bid_amount"]
[1729532003610,0.074049,67547.0,67545.0,0.04027049]
[1729532003811,0.001,67551.0,67545.0,0.04027049]
[1729532004014,0.001,67551.0,67545.0,0.03927049]
[1729532004214,0.074049,67546.0,67545.0,0.03927049]
[1729532004827,0.074049,67546.0,67545.0,0.03227049]
[1729532005017,0.074049,67546.0,67545.0,0.04027049]
[1729532005219,0.074049,67546.0,67545.0,0.0212207]
[1729532005621,0.074049,67546.0,67545.0,0.0132207]
[1729532005821,0.074049,67546.0,67545.0,0.0212207]
[1729532006219,0.03698586,67546.0,67545.0,0.0212207]
[1729532006620,0.03698586,67546.0,67545.0,0.0132207]
[1729532007222,0.03698586,67546.0,67545.0,0.0072207]
[1729532008023,0.03798586,67546.0,67545.0,0.0022207]
[1729532008220,0.03798586,67546.0,67545.0,0.0042207]
[1729532008626,0.03798586,67546.0,67545.0,0.04605888]
[1729532008934,0.03698586,67546.0,67545.0,0.0052207]
[1729532009443,0.03698586,67546.0,67545.0,0.0042207]
[1729532010431,0.03698586,67546.0,67545.0,0.0032207]
[1729532010627,0.03698586,67546.0,67545.0,0.0082207]
[1729532011335,0.03698586,67546.0,67545.0,0.0032207]
[1729532011632,0.03698586,67546.0,67545.0,0.0042207]
[1729532012236,0.03698586,67546.0,67545.0,0.0032207]
[1729532012740,0.03698586,67546.0,67545.0,0.0022207]
[1729532012951,0.03698586,67546.0,67545.0,0.0042207]
[1729532013238,0.074049,67546.0,67545.0,0.11711178]
[1729532013541,0.074049,67546.0,67545.0,0.11611178]
[1729532013928,0.186749,67546.0,67545.0,0.11911178]
[1729532014128,0.186749,67546.0,67545.0,0.0791523]
[1729532014632,0.186749,67546.0,67545.0,0.0032207]
[1729532014837,0.186749,67546.0,67545.0,0.18905539]
[1729532015236,0.186749,67546.0,67545.0,0.11612379]
[1729532017633,0.186749,67546.0,67545.0,0.07610305]
[1729532018241,0.186749,67546.0,67545.0,0.0032207]
[1729532018434,0.186749,67546.0,67545.0,0.18900113]
[1729532018636,0.074049,67546.0,67545.0,0.18900113]
[1729532018942,0.074049,67546.0,67545.0,0.18899886]
[1729532019235,0.074049,67546.0,67545.0,0.07610305]
[1729532019537,0.074049,67546.0,67545.0,0.001]
[1729532019749,0.44416,67545.0,67531.0,0.08767426]
[1729532019927,0.3608,67533.0,67530.0,0.08747564]
[1729532020242,0.074069,67528.0,67527.0,0.08747564]
[1729532020444,0.074069,67528.0,67527.0,0.07407]
[1729532020744,0.0552,67532.0,67526.0,0.08747564]
[1729532020935,0.07407,67527.0,67526.0,0.08747564]
[1729532021240,0.0552,67532.0,67523.0,0.0564]
[1729532021443,0.3608,67525.0,67522.0,0.00222147]
[1729532021758,0.074074,67523.0,67522.0,0.00222147]
[1729532023142,0.074074,67523.0,67522.0,0.01322147]
[1729532023534,0.075074,67523.0,67522.0,0.02322147]
[1729532024537,0.001,67523.0,67522.0,0.09729647]
[1729532025338,0.001,67523.0,67522.0,0.45809647]
[1729532026638,0.001,67523.0,67522.0,0.50184056]
[1729532027353,0.001,67523.0,67522.0,0.45809647]
[1729532027948,0.001,67523.0,67522.0,0.50190559]
[1729532028143,0.074065,67532.0,67527.0,0.074069]
[1729532028448,0.074065,67532.0,67530.0,0.08765762]
[1729532029250,0.075065,67532.0,67531.0,0.08765762]
[1729532030045,0.074065,67532.0,67531.0,0.08765762]
[1729532030237,0.074065,67532.0,67531.0,0.13476692]
[1729532030637,0.074065,67532.0,67530.0,0.16679157]
[1729532032140,0.074065,67532.0,67531.0,0.08972557]
[1729532032346,0.074065,67532.0,67531.0,0.09072557]
[1729532032949,0.074065,67532.0,67531.0,0.003]
[1729532033135,0.3608,67533.0,67530.0,0.002]
[1729532033337,0.074065,67531.0,67530.0,0.005]
[1729532033851,0.3608,67533.0,67531.0,0.001]
[1729532034056,0.074064,67532.0,67531.0,0.001]
[1729532034657,0.435618,67539.0,67531.0,0.2481724]
[1729532034658,0.36156,67539.0,67531.0,0.2481724]
[1729532034855,0.074058,67538.0,67535.0,0.3608]
[1729532035052,0.074058,67538.0,67536.0,0.2471724]
[1729532035251,0.074058,67538.0,67537.0,0.2471724]
[1729532035846,0.074058,67538.0,67537.0,0.1127472]
[1729532036243,0.074063,67534.0,67531.0,0.074065]
[1729532036545,0.074059,67537.0,67531.0,0.074065]
[1729532036746,0.074064,67533.0,67531.0,0.074065]
[1729532037942,0.008,67538.0,67531.0,0.01874088]
[1729532038257,0.008,67538.0,67537.0,0.074059]
[1729532038655,0.00222149,67547.0,67537.0,0.074059]
[1729532038656,0.07627049,67547.0,67537.0,0.074059]
[1729532038962,0.00222149,67547.0,67546.0,0.074049]
[1729532039990,0.00322149,67547.0,67546.0,0.074049]
[1729532040463,0.00422149,67547.0,67546.0,0.074049]
[1729532040662,0.00522149,67547.0,67546.0,0.074049]
[1729532040955,0.0565,67564.0,67546.0,0.48800034]
[1729532041160,0.0565,67564.0,67554.0,0.07404]
[1729532041365,0.0565,67564.0,67549.0,0.3608]
[1729532041565,0.074034,67561.0,67555.0,0.074039]
[1729532041785,0.0565,67564.0,67555.0,0.074039]
[1729532041969,0.074033,67561.0,67555.0,0.074039]
[1729532042286,0.074034,67560.0,67555.0,0.074039]
[1729532042492,0.074034,67560.0,67556.0,0.074038]
[1729532043171,0.02215737,67560.0,67557.0,0.18537147]
[1729532043465,0.074033,67561.0,67558.0,0.18537047]
[1729532043666,0.011,67560.0,67558.0,0.074036]
[1729532043875,0.085034,67560.0,67558.0,0.074036]
[1729532044753,0.089034,67560.0,67558.0,0.074036]
[1729532045155,0.078034,67560.0,67559.0,0.074035]
[1729532045857,0.074035,67559.0,67558.0,0.002]
[1729532046388,0.074036,67558.0,67557.0,0.074036]
[1729532046870,0.014,67560.0,67559.0,0.074035]
[1729532047252,0.014,67560.0,67556.0,0.074037]
[1729532047469,0.074037,67558.0,67557.0,0.074036]
[1729532048661,0.074037,67557.0,67556.0,0.01903402]
[1729532048859,0.074037,67557.0,67555.0,0.3608]
[1729532049181,0.074037,67557.0,67556.0,0.074038]
[1729532049760,0.004,67557.0,67556.0,0.075038]
[1729532049951,0.014,67557.0,67556.0,0.18665591]
[1729532050755,0.074026,67568.0,67556.0,0.55669791]
[1729532050971,0.3608,67569.0,67556.0,0.55669791]
[1729532050972,0.074026,67567.0,67564.0,0.074028]
[1729532051267,0.074027,67566.0,67565.0,0.0567]
[1729532053256,0.084027,67566.0,67565.0,0.0577]
[1729532053954,0.084027,67566.0,67565.0,0.07709325]
[1729532054267,0.084027,67566.0,67565.0,0.07809325]
[1729532058264,0.1657474,67566.0,67565.0,0.04053872]
[1729532064459,0.0917204,67566.0,67565.0,0.11456672]
[1729532064664,0.0817204,67566.0,67565.0,0.11356672]
[1729532064863,0.0817204,67566.0,67565.0,0.11456672]
[1729532065572,0.0817204,67566.0,67565.0,0.55856672]
[1729532066079,0.0817204,67566.0,67565.0,0.11456672]
[1729532066473,0.074022,67571.0,67567.0,0.074026]
[1729532066662,0.074022,67571.0,67569.0,0.3608]
[1729532067174,0.00222106,67574.0,67569.0,0.3608]
[1729532067175,0.074023,67570.0,67569.0,0.3608]
[1729532068068,0.074025,67568.0,67567.0,0.3608]
[1729532068877,0.074025,67568.0,67565.0,0.09342125]
[1729532069171,0.074025,67568.0,67567.0,0.3608]
[1729532069672,0.1135,67580.0,67562.0,0.128031]
[1729532069878,0.3608,67570.0,67562.0,0.1466821]
[1729532070084,0.074029,67565.0,67562.0,0.0726511]
[1729532070561,0.074029,67564.0,67562.0,0.0726511]
[1729532070766,0.07403,67564.0,67562.0,0.0726511]
[1729532071171,0.07403,67564.0,67562.0,0.1466831]
[1729532071374,0.07403,67564.0,67563.0,0.3608]
[1729532072876,0.07403,67563.0,67562.0,0.0216511]
[1729532073482,0.15575295,67563.0,67562.0,0.01642335]
[1729532073776,0.15575295,67563.0,67562.0,0.003]
[1729532073979,0.15575295,67563.0,67562.0,0.002]
[1729532074382,0.074032,67562.0,67561.0,0.3608]
[1729532074582,0.15575495,67562.0,67561.0,0.3608]
[1729532074965,0.08172295,67562.0,67561.0,0.434833]
[1729532075170,0.08172295,67562.0,67561.0,0.3608]
[1729532075384,0.15575495,67562.0,67561.0,0.3608]
[1729532075731,0.08172295,67562.0,67561.0,0.3628]
[1729532075875,0.15575495,67562.0,67561.0,0.002]
[1729532076066,0.15575495,67562.0,67561.0,0.005]
[1729532077065,0.15575495,67562.0,67561.0,0.003]
[1729532077269,0.15575495,67562.0,67561.0,0.3638]
[1729532077578,0.15575436,67562.0,67561.0,0.3608]
[1729532078482,0.08172236,67562.0,67561.0,0.3608]
[1729532078676,0.08172236,67562.0,67561.0,0.434833]
[1729532078878,0.03626573,67562.0,67561.0,0.434833]
[1729532079270,0.08172236,67562.0,67561.0,0.434833]
[1729532080072,0.08172236,67562.0,67561.0,0.436833]
[1729532080379,0.08172236,67562.0,67561.0,0.439833]
[1729532080578,0.15575436,67562.0,67561.0,0.3658]
[1729532080779,0.15575436,67562.0,67561.0,0.3638]
[1729532080982,0.08172236,67562.0,67561.0,0.3638]
[1729532081479,0.36302036,67577.0,67561.0,0.3638]
[1729532081673,0.36302036,67577.0,67571.0,0.04394336]
[1729532081883,0.074021,67572.0,67571.0,0.04394336]
[1729532082382,0.074021,67572.0,67568.0,0.04394336]
[1729532082682,0.074021,67572.0,67563.0,0.05859115]
[1729532082683,0.074029,67564.0,67563.0,0.04394336]
[1729532083080,0.074032,67562.0,67561.0,0.003]
[1729532084080,0.074032,67562.0,67561.0,0.004]
[1729532084286,0.074032,67562.0,67561.0,0.002]
[1729532084475,0.074032,67562.0,67561.0,0.005]
[1729532084789,0.074032,67562.0,67561.0,0.02242914]
[1729532084983,0.1181,67563.0,67555.0,0.40474336]
[1729532085294,0.074037,67558.0,67555.0,0.3608]
[1729532085979,0.1181,67563.0,67555.0,0.434839]
[1729532086185,0.074035,67559.0,67555.0,0.434839]
[1729532086687,0.074035,67559.0,67555.0,0.45419582]
[1729532087386,0.1181,67563.0,67555.0,0.45519582]
[1729532087692,0.074035,67559.0,67555.0,0.45519582]
[1729532087896,0.074035,67559.0,67555.0,0.46019582]
[1729532088281,0.074035,67559.0,67555.0,0.46219582]
[1729532088590,0.074035,67559.0,67555.0,0.46019582]
[1729532088775,0.074035,67559.0,67555.0,0.38615682]
[1729532088974,0.074035,67559.0,67556.0,0.074038]
[1729532089790,0.074037,67557.0,67555.0,0.39315682]
[1729532089981,0.074034,67561.0,67555.0,0.46719582]
[1729532090504,0.074034,67561.0,67555.0,0.45419582]
[1729532090791,0.074034,67561.0,67555.0,0.46419582]
[1729532091291,0.074034,67561.0,67555.0,0.46019582]
[1729532091595,0.074036,67558.0,67555.0,0.46619582]
[1729532091895,0.074033,67561.0,67556.0,0.074038]
[1729532092976,0.074033,67561.0,67557.0,0.074036]
[1729532093687,0.1181,67563.0,67557.0,0.074036]
[1729532093688,0.074034,67560.0,67557.0,0.074036]
[1729532093888,0.1181,67563.0,67556.0,0.001]
[1729532094086,0.074033,67561.0,67558.0,0.074035]
[1729532095594,0.08172611,67560.0,67558.0,0.074035]
[1729532095795,0.08172611,67559.0,67558.0,0.074035]
[1729532095990,0.08172611,67559.0,67558.0,0.076035]
[1729532096738,0.05672611,67559.0,67558.0,0.076035]
[1729532096899,0.05672611,67559.0,67558.0,0.077035]
[1729532097603,0.05672611,67559.0,67558.0,0.075035]
[1729532098285,0.05672611,67559.0,67558.0,0.077035]
[1729532098588,0.05672611,67559.0,67558.0,0.079035]
[1729532098882,0.05672611,67559.0,67556.0,0.42072]
[1729532098883,0.05672611,67559.0,67556.0,0.33574101]
[1729532099083,0.04545872,67558.0,67556.0,0.33442101]
[1729532099401,0.04545872,67557.0,67556.0,0.40845901]
[1729532099696,0.19177699,67566.0,67565.0,0.074028]
[1729532099895,0.19177699,67566.0,67565.0,0.434828]
[1729532100089,0.074018,67574.0,67569.0,0.074024]
[1729532100493,0.074022,67571.0,67568.0,0.074024]
[1729532100691,0.074019,67574.0,67569.0,0.074023]
[1729532100905,0.26579599,67574.0,67569.0,0.074023]
[1729532101395,0.074022,67571.0,67569.0,0.002]
[1729532101596,0.00422068,67572.0,67569.0,0.002]
[1729532102195,0.074023,67570.0,67569.0,0.002]
[1729532102410,0.434823,67570.0,67569.0,0.002]
[1729532102618,0.434823,67570.0,67556.0,0.27706101]
[1729532102620,0.074037,67557.0,67556.0,0.27706101]
[1729532102809,0.3608,67564.0,67556.0,0.27706101]
[1729532103094,0.074036,67558.0,67556.0,0.27582101]
[1729532103606,0.074036,67558.0,67557.0,0.04394336]
[1729532104196,0.074033,67561.0,67557.0,0.04394336]
[1729532104501,0.074036,67558.0,67557.0,0.04394336]
[1729532104702,0.074036,67558.0,67556.0,0.34893818]
[1729532104893,0.074036,67558.0,67557.0,0.04394336]
[1729532105093,0.074036,67558.0,67557.0,0.04894336]
[1729532105304,0.074036,67558.0,67557.0,0.05194336]
[1729532105799,0.074036,67558.0,67557.0,0.008]
[1729532106604,0.074036,67558.0,67557.0,0.003]
[1729532106906,0.074036,67558.0,67557.0,0.005]
[1729532107297,0.074036,67558.0,67557.0,0.001]
[1729532107496,0.074036,67558.0,67556.0,0.29499482]
[1729532107803,0.076036,67558.0,67556.0,0.29499482]
[1729532107998,0.074037,67557.0,67556.0,0.29499482]
[1729532109840,0.074037,67557.0,67556.0,0.29699482]
[1729532110697,0.075037,67557.0,67556.0,0.29699482]
[1729532111003,0.001,67557.0,67556.0,0.29499482]
[1729532111307,0.074021,67573.0,67556.0,0.29499482]
[1729532111308,0.074026,67568.0,67556.0,0.36903282]
[1729532111605,0.01864159,67575.0,67562.0,0.3608]
[1729532111934,0.01864159,67575.0,67564.0,0.074029]
[1729532111935,0.074025,67568.0,67564.0,0.074029]
[1729532113306,0.074026,67567.0,67564.0,0.074029]
[1729532113505,0.118,67577.0,67562.0,0.3608]
[1729532113506,0.03626355,67566.0,67562.0,0.3608]
[1729532113704,0.002,67568.0,67562.0,0.3608]
[1729532113899,0.002,67568.0,67567.0,0.074026]
[1729532114300,0.3608,67582.0,67569.0,0.074023]
[1729532114511,0.074016,67576.0,67570.0,0.074022]
[1729532115100,0.074016,67576.0,67571.0,0.074022]
[1729532115906,0.3608,67582.0,67571.0,0.074022]
[1729532115907,0.074018,67575.0,67571.0,0.074022]
[1729532116111,0.3608,67582.0,67571.0,0.074022]
[1729532116498,0.00522068,67572.0,67571.0,0.075022]
[1729532117013,0.07880474,67587.0,67583.0,0.074008]
[1729532117217,0.00480074,67587.0,67585.0,0.074005]
[1729532117901,0.00480074,67587.0,67584.0,0.074007]
[1729532118713,0.00680074,67587.0,67585.0,0.001]
[1729532118915,0.074005,67586.0,67585.0,0.001]
[1729532120011,0.074005,67586.0,67585.0,0.02008992]
[1729532120317,0.074005,67586.0,67585.0,0.02108992]
[1729532120509,0.074005,67586.0,67585.0,0.02008992]
[1729532121304,0.00480074,67587.0,67585.0,0.02008992]
[1729532121612,0.00480074,67587.0,67586.0,0.074005]
[1729532122027,0.00480074,67587.0,67586.0,0.133505]
[1729532122329,0.00480074,67587.0,67586.0,0.193305]
[1729532122809,0.00480074,67587.0,67586.0,0.637185]
[1729532123207,0.00705407,67588.0,67586.0,0.56318]
[1729532123462,0.00431139,67594.0,67590.0,0.074001]
[1729532123916,0.00431139,67594.0,67590.0,0.517841]
[1729532124111,0.00431139,67594.0,67590.0,0.074001]
[1729532124316,0.00431139,67594.0,67591.0,0.074]
[1729532124530,0.00431139,67594.0,67593.0,0.073998]
[1729532124815,0.00611318,67598.0,67595.0,0.073995]
[1729532125112,0.00611318,67598.0,67595.0,0.434795]
[1729532126106,0.00611318,67598.0,67595.0,0.878595]
[1729532126410,0.09009166,67596.0,67595.0,0.71567705]
[1729532126606,0.09009166,67596.0,67595.0,0.34587205]
[1729532126803,0.09009166,67596.0,67595.0,0.34687205]
[1729532127205,0.09009166,67596.0,67595.0,0.46507205]
[1729532127805,0.09009166,67596.0,67595.0,0.48935786]
[1729532128000,0.09009166,67596.0,67595.0,0.37115786]
[1729532128211,0.09009166,67596.0,67595.0,0.48935786]
[1729532128518,0.09009166,67596.0,67595.0,0.37115786]
[1729532128712,0.09009166,67596.0,67595.0,0.37215786]
[1729532128913,0.09009166,67596.0,67595.0,0.49035786]
[1729532129508,0.09009166,67596.0,67595.0,0.37215786]
[1729532129708,0.09009166,67596.0,67595.0,0.49035786]
[1729532130324,0.09009166,67596.0,67595.0,0.37215786]
[1729532133428,0.0084221,67596.0,67595.0,0.37215786]
[1729532135733,0.0084221,67596.0,67595.0,0.02628581]
[1729532135925,0.7107161,67596.0,67582.0,0.3608]
[1729532136130,0.3608,67590.0,67582.0,0.3608]
[1729532136327,0.074007,67585.0,67582.0,0.3608]
[1729532136831,0.074003,67589.0,67582.0,0.434809]
[1729532137224,0.3608,67590.0,67582.0,0.38453114]
[1729532137434,0.1929221,67596.0,67582.0,0.38453114]
[1729532137623,0.2669161,67596.0,67588.0,0.074003]
[1729532137934,0.2679161,67596.0,67589.0,0.074002]
[1729532139520,0.2699161,67596.0,67589.0,0.074002]
[1729532139731,0.2699161,67596.0,67588.0,0.001]
[1729532139732,0.1959221,67596.0,67588.0,0.001]
[1729532139933,0.074,67591.0,67588.0,0.001]
[1729532140123,0.074,67591.0,67589.0,0.001]
[1729532140623,0.074,67591.0,67589.0,0.002]
[1729532141227,0.076,67591.0,67589.0,0.001]
[1729532141435,0.077,67591.0,67589.0,0.002]
[1729532141629,0.03996516,67591.0,67589.0,0.002]
[1729532142025,0.003,67591.0,67589.0,0.002]
[1729532142222,0.003,67591.0,67589.0,0.001]
[1729532142223,0.878641,67590.0,67589.0,0.001]
[1729532142476,0.878641,67590.0,67583.0,0.0581233]
[1729532142477,0.80464,67590.0,67583.0,0.0581233]
[1729532143008,0.074015,67577.0,67576.0,0.06034245]
[1729532143017,0.074015,67577.0,67576.0,0.00221915]
[1729532143534,0.074015,67577.0,67576.0,0.02622689]
[1729532144233,0.074015,67577.0,67576.0,0.03022689]
[1729532144826,0.074015,67577.0,67576.0,0.02800774]
[1729532145041,0.074015,67577.0,67576.0,0.03000774]
[1729532145335,0.3608,67584.0,67576.0,0.03000774]
[1729532145546,0.3608,67584.0,67580.0,0.04377324]
[1729532145930,0.074011,67581.0,67580.0,0.04377324]
[1729532146125,0.074011,67581.0,67579.0,0.04377324]
[1729532146725,0.074011,67581.0,67580.0,0.04377324]
[1729532146929,0.074011,67581.0,67576.0,0.08813104]
[1729532146930,0.3608,67584.0,67579.0,0.04377324]
[1729532147127,0.074015,67577.0,67576.0,0.08413104]
[1729532147329,0.074015,67577.0,67576.0,0.02600774]
[1729532147737,0.074015,67577.0,67576.0,0.02400774]
[1729532147936,0.074016,67576.0,67575.0,0.0581233]
[1729532148132,0.195616,67576.0,67575.0,0.0581233]
[1729532148640,0.195616,67576.0,67570.0,0.3608]
[1729532149633,0.074019,67574.0,67570.0,0.3608]
[1729532149835,0.1216,67576.0,67570.0,0.02414617]
[1729532149836,0.434822,67571.0,67570.0,0.02414617]
[1729532150037,0.3608,67571.0,67561.0,0.074032]
[1729532150247,0.3608,67571.0,67558.0,0.42184]
[1729532150537,0.074027,67566.0,67558.0,0.3608]
[1729532151340,0.074023,67570.0,67558.0,0.38483202]
[1729532151549,0.3608,67571.0,67558.0,0.38483202]
[1729532151550,0.074029,67564.0,67558.0,0.38483202]
[1729532151736,0.3608,67571.0,67558.0,0.38483202]
[1729532152057,0.074031,67563.0,67558.0,0.39883202]
[1729532153131,0.074031,67563.0,67558.0,0.41283202]
[1729532153361,0.074025,67568.0,67560.0,0.074033]
[1729532153636,0.074027,67566.0,67560.0,0.074033]
[1729532155138,0.074027,67566.0,67560.0,0.088033]
[1729532155650,0.3608,67571.0,67562.0,0.08722442]
[1729532155651,0.30893015,67571.0,67562.0,0.08722442]
[1729532155946,0.074023,67570.0,67569.0,0.0728702]
[1729532156634,0.074024,67569.0,67568.0,0.0728702]
[1729532156835,0.074024,67569.0,67568.0,0.18572427]
[1729532157135,0.074024,67569.0,67568.0,0.18572426]
[1729532157550,0.07402,67573.0,67568.0,0.1868747]
[1729532157746,0.074021,67572.0,67570.0,0.07286331]
[1729532158052,0.1216,67576.0,67574.0,0.074017]
[1729532158241,0.1216,67576.0,67575.0,0.074017]
[1729532158590,0.1216,67576.0,67575.0,0.14688031]
[1729532159237,0.195616,67576.0,67575.0,0.14688031]
[1729532159432,0.195616,67576.0,67575.0,0.25971974]
[1729532159844,0.195616,67576.0,67575.0,0.18685643]
[1729532160040,0.195616,67576.0,67575.0,0.11283943]
[1729532160243,0.3608,67577.0,67576.0,0.074016]
[1729532160447,0.3608,67577.0,67576.0,0.1868554]
[1729532160747,0.074008,67584.0,67582.0,0.074009]
[1729532160947,0.074008,67584.0,67582.0,0.14688869]
[1729532161145,0.074008,67584.0,67583.0,0.07287969]
[1729532161353,0.074004,67587.0,67583.0,0.11282905]
[1729532161548,0.074004,67587.0,67584.0,0.11282905]
[1729532161779,0.074004,67587.0,67585.0,0.11282905]
[1729532161957,0.0581,67592.0,67585.0,0.18683505]
[1729532161959,0.074002,67589.0,67585.0,0.18683505]
[1729532162148,0.434805,67586.0,67585.0,0.18683505]
[1729532162351,0.3608,67586.0,67585.0,0.18683505]
[1729532162553,0.00222005,67590.0,67585.0,0.11282905]
[1729532162856,0.00222005,67590.0,67589.0,0.074002]
[1729532162966,0.00222005,67590.0,67589.0,0.18683105]
[1729532163763,0.00222005,67590.0,67589.0,0.074002]
[1729532164450,0.00622005,67590.0,67589.0,0.076002]
[1729532165449,0.08022105,67590.0,67589.0,0.076002]
[1729532165649,0.00622005,67590.0,67589.0,0.076002]
[1729532165850,0.08022105,67590.0,67589.0,0.076002]
[1729532166444,0.00622005,67590.0,67589.0,0.076002]
[1729532167854,0.08022105,67590.0,67589.0,0.076002]
[1729532168154,0.08022105,67590.0,67589.0,0.002]
[1729532170560,0.16191603,67590.0,67589.0,0.002]
[1729532175266,0.08791503,67590.0,67589.0,0.076002]
[1729532175455,0.08791307,67590.0,67589.0,0.076002]
[1729532175762,0.16191407,67590.0,67589.0,0.076002]
[1729532176272,0.08791307,67590.0,67589.0,0.076002]
[1729532177669,0.16191407,67590.0,67589.0,0.002]
[1729532178565,0.08022105,67590.0,67589.0,0.002]
[1729532185585,0.1619179,67590.0,67589.0,0.002]
[1729532187407,0.1619179,67590.0,67589.0,0.00159003]
[1729532193782,0.08022105,67590.0,67589.0,0.00159003]
[1729532198884,0.10389012,67590.0,67589.0,0.00159003]
[1729532200870,0.18559357,67590.0,67589.0,0.00159003]
[1729532202883,0.1619245,67590.0,67589.0,0.00159003]
[1729532203082,0.1619245,67590.0,67589.0,0.00126569]
[1729532207096,0.1619245,67590.0,67589.0,0.07526769]
[1729532207391,0.16192061,67590.0,67589.0,0.07526769]
[1729532207989,0.15992061,67590.0,67589.0,0.077002]
[1729532208485,0.15992061,67590.0,67589.0,0.003]
[1729532208787,0.07822105,67590.0,67589.0,0.10079587]
[1729532208988,0.07822105,67590.0,67589.0,0.077002]
[1729532209389,0.07622105,67590.0,67589.0,0.002]
[1729532209588,0.00222005,67590.0,67589.0,0.001]
[1729532209886,0.07622105,67590.0,67589.0,0.078002]
[1729532210494,0.00222005,67590.0,67589.0,0.438802]
[1729532210680,0.00222005,67590.0,67589.0,0.500302]
[1729532211882,0.00222005,67590.0,67589.0,0.0655]
[1729532211883,0.07622105,67590.0,67589.0,0.0655]
[1729532212086,0.07622105,67590.0,67589.0,0.10941633]
[1729532212279,0.07622105,67590.0,67589.0,0.0655]
[1729532212682,0.07622105,67590.0,67589.0,0.0645]
[1729532213490,0.07622105,67590.0,67589.0,0.0635]
[1729532214093,0.07622105,67590.0,67589.0,0.0625]
[1729532215193,0.07822105,67590.0,67589.0,0.0615]
[1729532215385,0.07822105,67590.0,67589.0,0.0635]
[1729532215700,0.15769792,67590.0,67589.0,0.0635]
[1729532216023,0.15569792,67590.0,67589.0,0.0635]
[1729532217192,0.15569792,67590.0,67589.0,0.0625]
[1729532217695,0.15569792,67590.0,67589.0,0.0615]
[1729532218293,0.15669792,67590.0,67589.0,0.0615]
[1729532218496,0.15769792,67590.0,67589.0,0.0615]
[1729532219884,0.15669792,67590.0,67589.0,0.0615]
[1729532220087,0.15669792,67590.0,67589.0,0.0625]
[1729532220693,0.15669792,67590.0,67589.0,0.0615]
[1729532221610,0.15669792,67590.0,67583.0,0.15515445]
[1729532221905,0.15669792,67590.0,67583.0,0.22916345]
[1729532221906,0.074007,67584.0,67583.0,0.22916345]
[1729532222109,0.11026144,67584.0,67583.0,0.22916345]
[1729532222301,0.15570392,67584.0,67583.0,0.22916345]
[1729532222603,0.08169692,67584.0,67583.0,0.22916345]
[1729532222829,0.08169692,67584.0,67583.0,0.15515445]
[1729532223108,0.15570392,67584.0,67583.0,0.16515445]
[1729532223554,0.15570392,67584.0,67583.0,0.15915445]
[1729532223696,0.074007,67584.0,67583.0,0.27797483]
[1729532223892,0.03696814,67584.0,67583.0,0.27797483]
[1729532230111,0.03696814,67584.0,67583.0,0.27797551]
[1729532231092,0.434798,67593.0,67584.0,0.074007]
[1729532231292,0.073998,67593.0,67592.0,0.3608]
[1729532231601,0.073998,67593.0,67592.0,0.47362142]
[1729532233112,0.076998,67593.0,67592.0,0.47362142]
[1729532233411,0.076998,67593.0,67592.0,0.54762042]
[1729532233412,0.078998,67593.0,67592.0,0.54762042]
[1729532233611,0.076998,67593.0,67592.0,0.57138287]
[1729532234008,0.076998,67593.0,67592.0,0.49738387]
[1729532234303,0.076998,67593.0,67592.0,0.13658387]
[1729532235210,0.074998,67593.0,67592.0,0.13658387]
[1729532235508,0.076998,67593.0,67592.0,0.13658387]
[1729532238801,0.0846866,67593.0,67592.0,0.02376245]
[1729532239317,0.0846866,67593.0,67591.0,0.1408]
[1729532239498,0.0816866,67592.0,67591.0,0.1408]
[1729532240104,0.0816866,67592.0,67591.0,0.16444091]
[1729532241107,0.11024917,67592.0,67591.0,0.09044091]
[1729532241315,0.1556863,67592.0,67591.0,0.09044091]
[1729532242905,0.1566863,67592.0,67591.0,0.09044091]
[1729532244601,0.1566863,67592.0,67591.0,0.16444091]
[1729532245815,0.074999,67592.0,67591.0,0.27724813]
[1729532246318,0.074999,67592.0,67591.0,0.27724809]
[1729532247410,0.074999,67592.0,67591.0,0.20324809]
[1729532247614,0.074999,67592.0,67591.0,0.27724809]
[1729532248923,0.074999,67592.0,67591.0,0.20324809]
[1729532249213,0.074999,67592.0,67591.0,0.13644809]
[1729532249412,0.074999,67592.0,67583.0,0.1318]
[1729532249413,0.001,67592.0,67590.0,0.0585531]
[1729532249727,0.07401,67582.0,67581.0,0.07316813]
[1729532249922,0.3608,67585.0,67580.0,0.07316813]
[1729532250113,0.07401,67582.0,67581.0,0.07320492]
[1729532250418,0.07401,67582.0,67566.0,0.61187]
[1729532250419,0.3608,67585.0,67580.0,0.07320492]
[1729532250603,0.074011,67581.0,67580.0,0.07320492]
[1729532250810,0.074011,67581.0,67580.0,0.18603498]
[1729532251509,0.074011,67581.0,67580.0,0.07320492]
[1729532252418,0.074011,67581.0,67580.0,0.01]
[1729532253217,0.074011,67581.0,67580.0,0.018]
[1729532253909,0.074011,67581.0,67580.0,0.13082986]
[1729532255409,0.074011,67581.0,67580.0,0.21805428]
[1729532255809,0.074011,67581.0,67580.0,0.13082986]
[1729532256514,0.074011,67581.0,67580.0,0.09118376]
[1729532257023,0.074011,67581.0,67580.0,0.20400653]
[1729532257230,0.074011,67581.0,67580.0,0.09117005]
[1729532257406,0.074011,67581.0,67580.0,0.018]
[1729532258825,0.72236,67585.0,67579.0,0.07317005]
[1729532258826,0.074012,67580.0,67579.0,0.07317005]
[1729532259057,0.074012,67580.0,67570.0,0.07317005]
[1729532259058,0.074021,67572.0,67570.0,0.07317005]
[1729532259324,0.074023,67570.0,67567.0,0.07317005]
[1729532259512,0.074023,67570.0,67567.0,0.02402217]
[1729532260120,0.074023,67570.0,67565.0,0.07317005]
[1729532260420,0.074023,67570.0,67563.0,0.07317005]
[1729532260612,0.074023,67570.0,67562.0,0.07317005]
[1729532261148,0.074023,67570.0,67558.0,0.074035]
[1729532261317,0.074038,67557.0,67556.0,0.074037]
[1729532261927,0.074038,67557.0,67555.0,0.00014942]
[1729532261928,0.3608,67564.0,67555.0,0.00014942]
[1729532262112,0.36156,67564.0,67563.0,0.07403]
[1729532262373,0.074027,67567.0,67566.0,0.074027]
[1729532262830,0.3608,67569.0,67568.0,0.074025]